bitfinex-derivatives/quotes_ETHF0:USTF0_20241129
["timestamp","ask_amount","ask_price","bid_price","bid_amount"]
[1732865824721,0.28159,3550.7,3550.4,3.48941]
[1732865824921,0.2816,3550.6,3550.4,3.2078]
[1732865825118,4.37769346,3550.8,3550.4,3.2078]
[1732865826018,0.2816,3550.6,3550.4,3.2078]
[1732865826219,4.37769346,3550.8,3550.4,3.2078]
[1732865826419,0.28159,3550.7,3550.4,3.2078]
[1732865826615,0.2816,3550.6,3550.4,3.2078]
[1732865827016,4.37769346,3550.9,3550.4,3.2078]
[1732865827219,4.37769346,3550.9,3550.5,0.2816]
[1732865827220,0.28158,3550.8,3550.5,0.2816]
[1732865827415,4.37769346,3550.9,3550.4,3.2078]
[1732865827617,4.37769346,3551.0,3550.8,3.2078]
[1732865827819,0.28154,3551.4,3551.0,0.28156]
[1732865828121,4.37769346,3551.6,3551.2,3.2078]
[1732865828423,0.28153,3551.5,3551.3,40.8]
[1732865828921,0.28152,3551.6,3551.3,40.8]
[1732865829219,0.2815,3551.8,3551.3,40.8]
[1732865829416,3.77815663,3551.9,3551.3,40.8]
[1732865829417,0.28153,3551.5,3551.3,40.8]
[1732865829726,0.28153,3551.4,3551.3,40.8]
[1732865830521,0.28154,3551.3,3551.2,3.2078]
[1732865831017,6.54445009,3551.6,3550.6,3.2078]
[1732865831226,0.7851,3551.2,3550.6,3.2078]
[1732865831433,0.28156,3551.0,3550.6,3.2078]
[1732865832428,0.28157,3550.9,3550.6,3.2078]
[1732865832626,0.8337,3551.1,3550.6,3.2078]
[1732865832627,0.28159,3550.8,3550.6,3.2078]
[1732865832921,0.8337,3551.1,3550.6,3.2078]
[1732865833131,0.28158,3550.9,3550.6,3.2078]
[1732865833321,0.8337,3551.1,3550.6,3.2078]
[1732865833623,0.28158,3550.8,3550.6,3.2078]
[1732865834025,0.28158,3550.9,3550.6,3.2078]
[1732865834625,0.28158,3550.8,3550.6,3.2078]
[1732865834929,0.28156,3551.0,3550.6,3.48939]
[1732865835126,0.28157,3550.9,3550.6,3.2078]
[1732865835326,0.28159,3550.7,3550.6,3.2078]
[1732865836326,0.8337,3551.1,3550.6,3.2078]
[1732865836528,0.28157,3550.9,3550.6,3.2078]
[1732865836821,0.8337,3551.1,3550.6,3.2078]
[1732865837021,7.58549346,3551.9,3551.0,3.2078]
[1732865837228,0.8522,3551.9,3551.4,3.2078]
[1732865837432,0.28152,3551.5,3551.4,3.2078]
[1732865837627,0.8522,3551.9,3551.4,44.8134]
[1732865837822,0.28152,3551.6,3551.4,44.8134]
[1732865838328,0.28152,3551.5,3551.4,44.8134]
[1732865841031,0.28152,3551.5,3551.4,44.0078]
[1732865842931,0.28151,3551.7,3551.4,44.0078]
[1732865843232,0.28152,3551.5,3551.4,44.0078]
[1732865843829,0.28152,3551.5,3551.4,40.8]
[1732865847137,0.2816,3550.6,3550.4,3.2078]
[1732865847336,1.1051,3550.5,3550.4,3.2078]
[1732865847632,1.9099,3550.5,3550.4,40.8]
[1732865852238,1.95457105,3550.5,3550.4,40.8]
[1732865852440,1.9099,3550.5,3550.4,40.8]
[1732865853441,1.6283,3550.5,3550.4,40.8]
[1732865853740,0.2816,3550.6,3550.4,40.8]
[1732865854038,0.2816,3550.6,3550.3,3.2078]
[1732865854240,5.37455663,3551.2,3550.3,3.2078]
[1732865854439,0.28156,3551.0,3550.9,40.8]
[1732865854643,0.50622754,3551.0,3550.9,40.8]
[1732865855437,0.50622754,3551.0,3550.3,3.2078]
[1732865855438,0.18,3551.0,3550.3,3.2078]
[1732865855739,0.28161,3550.5,3550.3,3.2078]
[1732865855936,0.28161,3550.5,3550.4,40.8]
[1732865856538,4.37769346,3551.1,3550.4,40.8]
[1732865856744,0.04466946,3551.0,3550.4,40.8]
[1732865857044,0.2816,3550.5,3550.4,40.8]
[1732865859441,3.2078,3550.7,3550.4,40.8]
[1732865859442,3.48939,3550.7,3550.4,40.8]
[1732865859635,0.2816,3550.6,3550.4,40.8]
[1732865859839,3.2078,3550.7,3550.4,40.8]
[1732865860043,0.2816,3550.6,3550.4,40.8]
[1732865860339,0.2816,3550.5,3550.4,40.8]
[1732865861847,0.8655,3550.6,3549.9,0.8343]
[1732865862053,0.28164,3550.1,3549.9,0.8343]
[1732865862550,0.28164,3550.1,3550.0,40.8]
[1732865862753,0.28163,3550.2,3550.0,40.8]
[1732865863054,0.8119,3550.4,3550.0,40.8]
[1732865863252,0.8119,3550.4,3550.2,3.2078]
[1732865863751,0.8434,3550.8,3550.2,3.2078]
[1732865863946,0.28157,3551.0,3550.7,3.2078]
[1732865864146,4.37769346,3551.3,3550.9,0.28157]
[1732865864348,4.37769346,3551.3,3550.8,1.07558]
[1732865864349,0.28154,3551.3,3550.8,1.07558]
[1732865864544,0.28154,3551.3,3551.0,40.8]
[1732865865053,0.28156,3551.1,3551.0,40.8]
[1732865872356,9.22884991,3551.4,3551.0,40.8]
[1732865872558,0.28155,3551.2,3551.0,40.8]
[1732865872953,0.28156,3551.1,3551.0,40.8]
[1732865873455,1.6423,3551.4,3551.0,40.8]
[1732865873656,1.6423,3551.4,3550.7,3.2078]
[1732865873858,0.28162,3550.3,3550.2,0.8362]
[1732865874153,0.28162,3550.3,3550.2,41.6362]
[1732865874751,0.28162,3550.3,3550.2,40.8]
[1732865884562,3.56381317,3550.3,3550.2,40.8]
[1732865884766,0.28162,3550.3,3550.2,40.8]
[1732865885472,3.56381317,3550.3,3550.2,40.8]
[1732865885664,0.28162,3550.3,3550.2,40.8]
[1732865886366,3.56381317,3550.3,3550.2,40.8]
[1732865887074,0.28162,3550.3,3550.2,40.8]
[1732865887678,4.66036991,3550.3,3550.2,40.8]
[1732865888070,4.66036991,3550.3,3549.0,4.41861284]
[1732865888071,0.28171,3549.1,3549.0,4.41861284]
[1732865888266,0.70415,3549.9,3548.5,3.2078]
[1732865888267,3.2861946,3549.2,3548.5,3.2078]
[1732865888465,2.47256938,3549.0,3548.5,6.22445663]
[1732865888676,2.19084938,3549.0,3548.5,6.22445663]
[1732865888970,4.38159281,3549.3,3548.5,6.22445663]
[1732865888971,5.47704398,3549.3,3548.9,5.65627663]
[1732865889175,2.19084938,3549.4,3549.2,2.16675663]
[1732865889375,1.6688,3550.2,3549.3,4.8558]
[1732865889376,2.19084938,3549.5,3549.3,4.8558]
[1732865889568,2.19084938,3549.6,3549.3,45.6558]
[1732865889972,2.47252938,3549.6,3549.3,45.6558]
[1732865890477,2.47252938,3549.5,3549.3,45.6558]
[1732865890777,2.19084938,3549.5,3549.3,45.6558]
[1732865890977,0.28169,3549.5,3549.3,45.6558]
[1732865891378,2.19084938,3549.6,3549.3,45.6558]
[1732865891572,3.2861946,3549.7,3549.3,45.6558]
[1732865891573,0.28169,3549.4,3549.3,45.6558]
[1732865893776,2.19084938,3549.5,3549.3,45.6558]
[1732865893973,2.47251938,3549.7,3549.4,0.28169]
[1732865894181,0.70402,3550.5,3549.3,45.9375]
[1732865894182,0.28167,3549.6,3549.3,45.9375]
[1732865894574,0.28167,3549.6,3549.3,5.1375]
[1732865894879,0.28169,3549.5,3549.3,4.8558]
[1732865895084,0.28169,3549.5,3549.4,40.8]
[1732865895577,0.28168,3549.6,3549.4,40.8]
[1732865895785,2.19084938,3550.1,3549.5,2.16675663]
[1732865895979,2.19084938,3550.3,3550.1,0.28163]
[1732865896276,0.2816,3550.5,3550.4,3.2078]
[1732865896577,0.2816,3550.5,3550.4,40.8]
[1732865896776,4.3622946,3550.5,3550.4,40.8]
[1732865896979,5.45769281,3550.5,3550.4,40.8]
[1732865897174,1.12082427,3550.5,3550.4,40.8]
[1732865897485,0.28163,3550.2,3549.6,3.48947]
[1732865897780,3.28664899,3550.4,3550.0,5.37455663]
[1732865897984,3.56824899,3550.6,3550.2,40.8]
[1732865898184,0.2816,3550.6,3550.5,3.2078]
[1732865898379,0.28159,3550.7,3550.5,3.2078]
[1732865898876,3.28664899,3550.8,3550.5,3.2078]
[1732865899180,0.28162,3550.3,3550.2,40.8]
[1732865900187,1.08962,3550.3,3550.2,40.8]
[1732865900874,5.47212008,3550.3,3550.2,40.8]
[1732865901684,1.08962,3550.3,3550.2,40.8]
[1732865901986,5.47212008,3550.3,3550.2,40.8]
[1732865903389,1.08962,3550.3,3550.2,40.8]
[1732865904786,6.60782433,3550.3,3550.2,40.8]
[1732865905091,1.13438694,3550.3,3550.2,40.8]
[1732865905789,1.13438694,3550.3,3549.1,3.2078]
[1732865905790,0.28171,3549.2,3549.1,3.2078]
[1732865905988,3.29276961,3549.5,3549.0,3.2078]
[1732865906189,0.28172,3549.1,3549.0,3.2078]
[1732865906385,0.28172,3549.1,3549.0,40.8]
[1732865906681,3.57448961,3549.1,3549.0,40.8]
[1732865907487,0.28172,3549.1,3549.0,40.8]
[1732865907889,3.57448961,3549.1,3549.0,40.8]
[1732865908082,0.28172,3549.1,3549.0,40.8]
[1732865908892,3.29276961,3549.2,3549.0,40.8]
[1732865909091,3.29276961,3549.3,3549.0,40.8]
[1732865909281,1.679,3549.4,3549.0,40.8]
[1732865909282,0.28171,3549.2,3549.0,40.8]
[1732865909485,4.97176961,3549.4,3549.0,40.8]
[1732865909693,0.821,3549.4,3549.2,3.2078]
[1732865910192,0.2817,3549.3,3549.2,3.2078]
[1732865910582,0.2817,3549.3,3549.0,40.8]
[1732865910788,0.821,3549.4,3549.0,40.8]
[1732865910789,0.28171,3549.2,3549.0,40.8]
[1732865910988,0.2817,3549.3,3549.0,40.8]
[1732865911686,0.28171,3549.2,3549.0,40.8]
[1732865912093,0.28171,3549.1,3549.0,40.8]
[1732865912288,1.10661,3549.1,3549.0,40.8]
[1732865913089,4.39937961,3549.1,3549.0,40.8]
[1732865913494,1.10661,3549.1,3549.0,40.8]
[1732865913688,0.86968435,3549.1,3548.2,3.2078]
[1732865913887,3.28638603,3548.9,3548.2,3.2078]
[1732865914286,2.16675663,3549.0,3547.8,4.142]
[1732865914287,3.28638603,3548.8,3547.8,4.142]
[1732865914488,4.95388603,3548.7,3547.8,4.0434]
[1732865914685,0.28178,3548.4,3547.9,40.8]
[1732865914891,0.28178,3548.3,3547.9,40.8]
[1732865915387,0.28179,3548.2,3547.9,40.8]
[1732865915786,0.2818,3548.1,3547.9,40.8]
[1732865916097,0.28179,3548.2,3547.9,40.8]
[1732865916393,0.8106,3548.1,3547.9,40.8]
[1732865917488,0.8379,3548.0,3547.9,40.8]
[1732865918990,1.1197,3548.0,3547.9,40.8]
[1732865921691,0.8379,3548.0,3547.9,40.8]
[1732865923599,3.28645663,3548.0,3547.9,40.8]
[1732865923799,4.14515663,3548.0,3547.9,40.8]
[1732865923996,4.14515663,3548.0,3547.3,3.2078]
[1732865923997,0.28181,3547.9,3547.3,3.2078]
[1732865924199,3.86335663,3548.0,3547.3,3.2078]
[1732865924501,3.86335663,3548.0,3547.4,40.8]
[1732865924695,0.28183,3547.8,3547.4,40.8]
[1732865924899,0.28183,3547.7,3547.4,40.8]
[1732865925298,0.28184,3547.5,3547.4,40.8]
[1732865925594,2.16675663,3547.7,3546.9,3.2078]
[1732865925595,0.28183,3547.6,3546.9,3.2078]
[1732865925795,2.16675663,3547.7,3546.9,3.2078]
[1732865925796,0.28188,3547.0,3546.9,3.2078]
[1732865925997,0.28188,3547.0,3546.9,44.0078]
[1732865926197,2.44863663,3547.0,3546.9,3.2078]
[1732865926403,2.16675663,3547.0,3546.0,3.2078]
[1732865926700,0.28191,3546.7,3546.0,3.2078]
[1732865926893,0.28189,3546.9,3546.0,3.2078]
[1732865927091,0.28191,3546.7,3546.0,3.2078]
[1732865927298,2.16675663,3547.0,3546.0,3.2078]
[1732865927503,0.28191,3546.7,3546.0,3.2078]
[1732865928000,2.44866663,3546.7,3546.4,3.2078]
[1732865928301,2.44866663,3546.7,3546.0,3.2078]
[1732865928499,2.16675663,3546.7,3546.0,3.2078]
[1732865928998,2.98365663,3546.7,3546.1,0.28195]
[1732865929204,2.98365663,3546.7,3546.0,3.2078]
[1732865929205,2.98365663,3546.7,3546.0,3.48976]
[1732865929796,3.2078,3547.1,3545.9,0.01668]
[1732865929797,0.28188,3547.0,3546.4,3.2078]
[1732865930001,5.37455663,3547.1,3546.4,3.2078]
[1732865930204,5.65643663,3547.1,3546.4,3.48973]
[1732865930504,5.37455663,3547.1,3546.5,0.28192]
[1732865930697,0.8169,3547.6,3546.9,3.2078]
[1732865931002,0.8458,3547.8,3547.3,3.2078]
[1732865931299,0.28179,3548.2,3547.5,0.28183]
[1732865931506,3.2078,3548.3,3547.5,0.28183]
[1732865931507,0.28179,3548.1,3547.5,0.28183]
[1732865931694,3.2078,3548.3,3547.3,3.2078]
[1732865931695,2.16675663,3548.2,3547.3,3.2078]
[1732865932094,2.16675663,3548.2,3547.5,0.28183]
[1732865932095,2.44854663,3548.2,3547.5,0.28183]
[1732865932298,0.2818,3548.1,3547.5,0.28183]
[1732865932498,2.16675663,3548.2,3547.3,3.2078]
[1732865932499,0.28182,3547.9,3547.3,3.48965]
[1732865932904,2.16675663,3548.2,3547.3,3.48965]
[1732865933301,0.28182,3547.9,3547.3,3.2078]
[1732865933502,0.28182,3547.9,3547.3,3.48965]
[1732865934094,3.2078,3548.3,3547.3,3.2078]
[1732865934095,2.16675663,3548.1,3547.3,3.2078]
[1732865934902,0.28181,3548.0,3547.3,3.48965]
[1732865935101,0.2818,3548.0,3547.3,3.48965]
[1732865935804,3.2078,3548.3,3547.4,40.8]
[1732865936001,2.16675663,3548.1,3547.4,40.8]
[1732865936303,0.28181,3547.9,3547.4,40.8]
[1732865936507,2.44854663,3548.1,3547.5,0.28184]
[1732865936803,0.2818,3548.0,3547.4,41.08185]
[1732865937105,0.28181,3547.9,3547.4,40.8]
[1732865938005,2.16675663,3548.1,3547.4,40.8]
[1732865938202,0.28181,3547.9,3547.4,40.8]
[1732865938512,2.44855663,3548.1,3547.5,0.28184]
[1732865938806,2.44855663,3548.1,3547.4,40.8]
[1732865938807,0.28181,3548.0,3547.4,40.8]
[1732865939405,3.2078,3548.3,3547.4,40.8]
[1732865939601,3.2078,3548.3,3547.4,42.96675663]
[1732865939803,3.48958,3548.3,3547.5,0.8582]
[1732865940111,3.2078,3548.3,3547.5,0.8582]
[1732865940310,3.2078,3548.3,3547.8,2.44856663]
[1732865940898,3.48958,3548.3,3547.8,2.44856663]
[1732865941102,3.48958,3548.3,3547.4,40.8]
[1732865941103,3.2078,3548.3,3547.4,40.8]
[1732865941402,0.28182,3547.8,3547.4,40.8]
[1732865942005,0.28181,3547.9,3547.4,40.8]
[1732865942508,0.28182,3547.8,3547.4,40.8]
[1732865943104,3.2078,3548.3,3547.4,40.8]
[1732865943302,10.37455663,3548.3,3547.4,40.8]
[1732865943505,0.28183,3547.7,3547.4,40.8]
[1732865943702,3.2078,3547.9,3547.4,40.8]
[1732865943703,1.5901,3547.6,3547.4,40.8]
[1732865943911,0.28184,3547.5,3547.4,40.8]
[1732865944904,1.5901,3547.6,3547.4,40.8]
[1732865945903,1.87193,3547.6,3547.4,40.8]
[1732865946308,1.5901,3547.6,3547.4,40.8]
[1732865946612,0.28181,3548.0,3547.4,40.8]
[1732865946911,1.6677,3548.1,3547.4,40.8]
[1732865947112,0.28181,3547.9,3547.4,40.8]
[1732865947909,1.6677,3548.1,3547.4,44.0078]
[1732865948112,1.6677,3548.1,3547.4,46.17455663]
[1732865948306,0.28181,3548.0,3547.4,46.45640663]
[1732865948502,0.28181,3548.0,3547.4,44.28965]
[1732865948809,0.28181,3548.0,3547.4,44.0078]
[1732865949112,1.9495,3548.1,3547.5,0.28184]
[1732865949413,1.6677,3548.1,3547.4,44.0078]
[1732865949606,1.9495,3548.1,3547.6,0.28183]
[1732865949806,1.6677,3548.1,3547.6,0.28183]
[1732865950008,1.9495,3548.1,3547.6,0.28183]
[1732865950205,1.6677,3548.1,3547.7,0.28182]
[1732865950409,0.28181,3548.0,3547.5,0.8047]
[1732865951009,0.28181,3548.0,3547.6,0.28183]
[1732865951410,1.6677,3548.1,3547.6,3.2078]
[1732865951814,3.28638603,3548.4,3547.6,3.2861]
[1732865952115,3.2078,3548.8,3548.2,0.28178]
[1732865952116,1.12036,3548.6,3548.2,0.28178]
[1732865952314,0.28176,3548.5,3548.1,0.28179]
[1732865952815,0.28179,3548.2,3548.0,3.2078]
[1732865953111,0.8386,3548.6,3548.0,3.2078]
[1732865953311,0.8386,3548.6,3548.2,40.8]
[1732865953515,0.28178,3548.3,3548.2,40.8]
[1732865954315,0.8386,3548.6,3548.2,40.8]
[1732865954709,0.8386,3548.6,3548.0,3.2078]
[1732865955015,0.28178,3548.3,3548.0,3.2078]
[1732865955232,0.8527,3548.2,3548.1,40.8]
[1732865955611,0.8386,3548.6,3548.1,40.8]
[1732865955910,3.28638603,3548.9,3548.6,0.28175]
[1732865956117,0.8331,3549.1,3548.8,3.2078]
[1732865957107,1.11481,3549.1,3548.8,3.2078]
[1732865957418,0.8331,3549.1,3548.8,3.2078]
[1732865960519,4.09358603,3549.4,3549.1,0.28171]
[1732865960816,4.09358603,3549.4,3549.2,3.2078]
[1732865960817,0.8072,3549.4,3549.2,3.2078]
[1732865961012,3.28638603,3549.5,3549.2,3.2078]
[1732865961720,0.28168,3549.6,3549.3,40.8]
[1732865961721,3.28638603,3549.6,3549.3,40.8]
[1732865962021,4.38165603,3549.7,3549.3,40.8]
[1732865962218,4.09998603,3549.7,3549.3,40.8]
[1732865962421,0.28168,3549.6,3549.3,40.8]
[1732865962721,0.8136,3549.7,3549.3,40.8]
[1732865963016,4.09998603,3549.7,3549.3,41.08169]
[1732865963212,0.8136,3549.7,3549.3,41.08169]
[1732865963722,0.28165,3549.9,3549.4,0.28169]
[1732865964117,1.11895,3549.9,3549.4,0.28169]
[1732865964316,0.28166,3549.8,3549.3,41.0817]
[1732865964917,3.28638603,3550.1,3549.7,2.16675663]
[1732865965120,3.2078,3550.2,3549.9,0.28164]
[1732865965416,3.2078,3550.2,3549.7,2.16675663]
[1732865965417,4.11808603,3550.6,3550.2,0.28162]
[1732865965722,0.8202,3550.9,3550.5,0.2816]
[1732865965917,1.10177,3550.9,3550.4,3.48941]
[1732865966116,0.8202,3550.9,3550.5,0.2816]
[1732865966313,0.8202,3550.9,3550.6,40.8]
[1732865967023,1.10177,3550.9,3550.6,40.8]
[1732865967418,0.28158,3550.8,3550.6,40.8]
[1732865967612,0.8202,3550.9,3550.6,40.8]
[1732865969424,1.10177,3550.9,3550.6,40.8]
[1732865969825,0.28159,3550.8,3550.6,40.8]
[1732865970119,0.8202,3550.9,3550.4,3.2078]
[1732865970120,0.28159,3550.7,3550.4,3.2078]
[1732865970617,0.8202,3550.9,3550.4,3.2078]
[1732865970618,0.28158,3550.8,3550.5,40.8]
[1732865971018,1.10177,3550.9,3550.5,40.8]
[1732865971519,0.8202,3550.9,3550.5,40.8]
[1732865971918,0.28159,3550.8,3550.5,40.8]
[1732865972317,0.8202,3550.9,3550.5,40.8]
[1732865972519,0.28158,3550.8,3550.5,40.8]
[1732865972712,0.28159,3550.7,3550.5,40.8]
[1732865973019,0.8065,3550.8,3550.5,40.8]
[1732865973222,2.97325663,3550.8,3549.8,3.9914]
[1732865973523,0.8407,3550.7,3549.8,3.9914]
[1732865973823,0.28161,3550.5,3549.9,40.8]
[1732865974221,0.2816,3550.6,3549.9,41.08165]
[1732865974422,0.2816,3550.6,3550.2,3.2078]
[1732865974619,0.2816,3550.5,3550.2,3.2078]
[1732865974923,0.28161,3550.5,3550.2,3.2078]
[1732865975220,0.28162,3550.3,3550.2,3.2078]
[1732865976213,0.28163,3550.2,3549.9,40.8]
[1732865976427,0.28163,3550.2,3550.0,3.2078]
[1732865976615,0.8407,3550.7,3550.0,3.2078]
[1732865976824,0.28163,3550.1,3550.0,3.2078]
[1732865977314,0.28164,3550.0,3549.9,40.8]
[1732865977518,1.11854,3550.0,3549.9,40.8]
[1732865979617,4.32634,3550.0,3549.9,40.8]
[1732865980525,4.55634,3550.0,3549.9,40.8]
[1732865981232,6.24434,3550.0,3549.9,40.8]
[1732865988330,6.01434,3550.0,3549.9,40.8]
[1732865991428,9.29206278,3550.0,3549.9,40.8]
[1732865992430,6.01434,3550.0,3549.9,40.8]
[1732865996433,10.38463704,3550.0,3549.9,40.8]
[1732865996628,6.01434,3550.0,3549.9,40.8]
[1732865997531,0.28169,3549.5,3549.1,3.2078]
[1732865997734,0.28169,3549.4,3549.1,3.2078]
[1732865997936,0.28169,3549.4,3549.2,40.8]
[1732865999841,0.2817,3549.3,3549.2,40.8]
[1732866000345,3.56724751,3549.3,3549.2,40.8]
[1732866001344,0.2817,3549.3,3549.2,40.8]
[1732866002047,3.56985986,3549.3,3549.2,40.8]
[1732866002344,0.2817,3549.3,3549.2,40.8]
[1732866003241,0.28175,3548.7,3548.3,4.1646]
[1732866003445,3.28787388,3548.9,3548.3,4.9513]
[1732866003642,9.24893002,3549.2,3548.4,40.8]
[1732866003643,0.28176,3548.5,3548.4,40.8]
[1732866003939,3.56963388,3548.5,3548.4,40.8]
[1732866004139,0.70441,3548.5,3547.8,0.7867]
[1732866004438,3.28600125,3548.3,3547.8,0.7867]
[1732866004642,0.28179,3548.1,3547.8,0.7867]
[1732866004939,3.28600125,3548.3,3547.8,0.7867]
[1732866005144,0.28179,3548.2,3547.9,40.8]
[1732866005637,3.28600125,3548.3,3547.9,40.8]
[1732866005838,3.28600125,3548.2,3547.9,40.8]
[1732866006033,0.2818,3548.1,3547.9,40.8]
[1732866006832,3.28600125,3548.3,3547.9,40.8]
[1732866007032,0.28179,3548.2,3547.9,40.8]
[1732866007233,0.2818,3548.0,3547.9,40.8]
[1732866007435,4.12130125,3548.4,3547.9,40.8]
[1732866007436,3.28600125,3548.3,3547.9,40.8]
[1732866007642,0.2818,3548.1,3547.9,40.8]
[1732866009345,0.2818,3548.0,3547.9,40.8]
[1732866009844,3.56780125,3548.1,3547.9,40.8]
[1732866010046,0.2818,3548.1,3547.9,40.8]
[1732866010342,0.2818,3548.0,3547.9,40.8]
[1732866010640,0.2818,3548.1,3547.9,40.8]
[1732866010839,3.28600125,3548.2,3547.9,40.8]
[1732866011242,3.56779125,3548.2,3547.9,40.8]
[1732866011449,0.2818,3548.1,3547.9,40.8]
[1732866011642,6.49380125,3548.3,3547.9,40.8]
[1732866012145,0.28179,3548.2,3547.9,40.8]
[1732866012742,6.49380125,3548.3,3547.9,40.8]
[1732866013143,0.2818,3548.0,3547.9,40.8]
[1732866015046,5.45275788,3548.0,3547.0,0.8142]
[1732866015253,0.28185,3547.5,3547.0,0.8142]
[1732866015547,2.16675663,3547.7,3546.9,4.069]
[1732866015855,0.28183,3547.6,3546.9,4.069]
[1732866016043,2.46513476,3547.6,3546.9,4.069]
[1732866016241,0.28183,3547.6,3546.9,4.069]
[1732866016449,2.46513476,3547.6,3546.9,4.069]
[1732866016644,0.28184,3547.5,3546.9,4.069]
[1732866017247,1.07555,3547.4,3546.9,4.069]
[1732866017551,1.07555,3547.4,3547.0,40.8]
[1732866018044,0.28186,3547.3,3547.0,40.8]
[1732866018252,0.28187,3547.2,3547.0,40.8]
[1732866018641,0.7937,3547.4,3547.0,40.8]
[1732866018846,0.28187,3547.2,3547.0,40.8]
[1732866019655,0.7937,3547.4,3547.0,40.8]
[1732866019852,0.28187,3547.1,3547.0,40.8]
[1732866020552,0.7937,3547.4,3547.0,40.8]
[1732866021053,1.08313,3547.7,3547.0,41.08188]
[1732866021254,1.08313,3547.7,3547.1,0.7885]
[1732866021549,0.8013,3547.7,3547.1,0.7885]
[1732866021747,0.8013,3547.7,3547.1,1.07037]
[1732866021948,0.8013,3547.7,3547.2,0.1179]
[1732866022348,2.18221033,3548.1,3547.3,3.2078]
[1732866022551,0.2818,3548.1,3547.4,1.06935]
[1732866022843,3.2078,3548.3,3547.4,0.7875]
[1732866023247,3.2078,3548.3,3547.5,40.8]
[1732866023647,0.28179,3548.2,3547.5,40.8]
[1732866023848,0.28182,3547.9,3547.5,40.8]
[1732866024245,0.28179,3548.2,3547.5,40.8]
[1732866024445,3.2078,3548.3,3547.5,40.8]
[1732866024446,0.28181,3548.0,3547.5,40.8]
[1732866025845,3.2078,3548.3,3547.7,3.2078]
[1732866025846,0.28179,3548.2,3547.7,3.2078]
[1732866026058,2.18221033,3548.4,3548.0,0.2818]
[1732866026249,2.18221033,3548.9,3548.1,5.51065663]
[1732866026454,3.2078,3549.3,3548.7,3.2078]
[1732866026650,2.18221033,3549.5,3548.3,2.44853663]
[1732866026854,0.28172,3549.1,3548.4,0.28177]
[1732866027154,0.28172,3549.1,3548.6,3.2078]
[1732866027550,0.7932,3549.2,3548.6,3.2078]
[1732866027854,0.28172,3549.1,3548.6,3.2078]
[1732866028250,0.7932,3549.2,3548.6,3.2078]
[1732866028458,1.07491,3549.2,3548.6,3.2078]
[1732866028763,0.28172,3549.1,3548.6,3.2078]
[1732866028952,0.7932,3549.2,3548.6,3.2078]
[1732866030459,0.8243,3549.4,3548.6,3.48955]
[1732866030755,0.8243,3549.4,3548.8,0.28174]
[1732866031157,0.8243,3549.4,3548.6,5.37455663]
[1732866031158,1.14688,3549.5,3548.6,5.37455663]
[1732866031356,0.8652,3549.5,3548.9,40.8]
[1732866032260,0.28169,3549.4,3548.9,40.8]
[1732866032756,0.8652,3549.5,3548.9,40.8]
[1732866033057,0.28169,3549.4,3548.9,40.8]
[1732866033662,0.2817,3549.3,3548.9,40.8]
[1732866033863,0.2817,3549.4,3548.9,40.8]
[1732866034657,0.28169,3549.4,3548.6,3.2078]
[1732866034959,0.28172,3549.1,3548.6,3.2078]
[1732866035262,0.28172,3549.1,3548.6,44.0078]
[1732866035664,2.18221033,3549.2,3548.6,44.0078]
[1732866036162,0.28173,3548.9,3548.6,40.8]
[1732866037063,1.15094,3548.8,3548.6,40.8]
[1732866037360,0.8692,3548.8,3548.6,40.8]
[1732866038367,0.28175,3548.7,3548.6,40.8]
[1732866040269,2.46396033,3548.7,3548.6,40.8]
[1732866040467,2.18221033,3548.7,3548.6,40.8]
[1732866040665,3.33315033,3548.8,3548.6,40.8]
[1732866040862,0.28175,3548.7,3548.6,40.8]
[1732866041165,0.28179,3548.2,3547.8,3.2078]
[1732866041466,2.18598357,3548.4,3547.8,3.2078]
[1732866041660,0.8006,3548.1,3547.9,40.8]
[1732866042867,0.8194,3548.3,3547.9,44.0078]
[1732866043368,1.10118,3548.3,3547.9,44.0078]
[1732866043765,0.28179,3548.2,3547.9,44.0078]
[1732866043965,0.8194,3548.3,3547.9,40.8]
[1732866044666,0.8194,3548.3,3548.0,3.2078]
[1732866045166,1.10118,3548.3,3548.0,3.2078]
[1732866045365,0.8194,3548.3,3548.0,3.2078]
[1732866045564,1.10118,3548.3,3548.0,3.2078]
[1732866045765,0.28178,3548.3,3548.0,3.2078]
[1732866045964,2.18598357,3548.4,3548.0,3.2078]
[1732866045965,0.28179,3548.2,3548.0,3.2078]
[1732866046567,2.18598357,3548.3,3548.0,3.2078]
[1732866046767,0.28179,3548.2,3548.0,3.2078]
[1732866047272,2.18598357,3548.3,3548.0,3.2078]
[1732866047465,0.28179,3548.2,3548.0,3.2078]
[1732866048066,0.28179,3548.2,3547.9,40.8]
[1732866048768,2.18598357,3548.2,3547.9,40.8]
[1732866049175,0.2818,3548.1,3547.9,40.8]
[1732866049875,2.46778357,3548.1,3547.9,40.8]
[1732866050067,2.46778357,3548.0,3547.9,40.8]
[1732866050471,2.18598357,3548.0,3547.9,40.8]
[1732866051166,2.18598357,3548.1,3547.9,40.8]
[1732866051675,2.46777357,3548.2,3547.9,40.8]
[1732866052367,0.2818,3548.1,3547.9,40.8]
[1732866052569,2.46777357,3548.2,3547.9,40.8]
[1732866053176,2.18598357,3548.2,3547.9,40.8]